bitfinex-derivatives/quotes_BTCF0:USTF0_20250117
["timestamp","ask_amount","ask_price","bid_price","bid_amount"]
[1737079979895,0.146638,101770.0,101760.0,0.45389484]
[1737079981092,0.146638,101770.0,101760.0,0.09309484]
[1737079981591,0.146638,101770.0,101760.0,0.45389484]
[1737079981794,0.049142,101760.0,101750.0,0.1012]
[1737079982396,0.049142,101760.0,101740.0,0.62578799]
[1737079982397,0.09309484,101760.0,101740.0,0.37084115]
[1737079982602,0.049147,101750.0,101740.0,0.46393599]
[1737079982897,0.049147,101750.0,101740.0,0.51308799]
[1737079986603,0.049147,101750.0,101740.0,0.37084115]
[1737079986794,0.049147,101750.0,101740.0,0.46393599]
[1737079987884,0.049147,101750.0,101740.0,0.51308799]
[1737079991598,0.049143,101760.0,101750.0,0.049146]
[1737079991800,0.146639,101770.0,101760.0,0.049142]
[1737079991993,0.146639,101770.0,101760.0,0.59833684]
[1737079995300,0.0975,101770.0,101760.0,0.59833684]
[1737079995609,0.0975,101770.0,101760.0,0.69633684]
[1737079996907,0.049134,101780.0,101770.0,0.049137]
[1737079997209,0.049134,101780.0,101770.0,0.50303184]
[1737080002296,0.049134,101780.0,101770.0,0.409937]
[1737080003511,0.049134,101780.0,101770.0,0.50303184]
[1737080004309,0.0981,101790.0,101770.0,0.50303184]
[1737080004505,0.049132,101780.0,101770.0,0.409937]
[1737080005210,0.049132,101780.0,101770.0,0.50303184]
[1737080005514,0.049132,101780.0,101770.0,0.3608]
[1737080005812,0.049137,101770.0,101760.0,0.51787324]
[1737080006000,0.226337,101770.0,101760.0,0.51787324]
[1737080006910,0.226337,101770.0,101760.0,0.61096808]
[1737080007211,0.226337,101770.0,101760.0,0.51787324]
[1737080008412,0.226337,101770.0,101760.0,0.61096808]
[1737080010015,0.3608,101790.0,101760.0,0.61096808]
[1737080010307,0.44521029,101800.0,101790.0,0.049128]
[1737080010509,0.44521029,101800.0,101790.0,0.14222284]
[1737080010706,0.52781029,101800.0,101790.0,0.50302284]
[1737080011714,0.23320012,101800.0,101790.0,0.50302284]
[1737080011914,0.18407512,101800.0,101790.0,0.50302284]
[1737080012807,0.18407512,101800.0,101790.0,0.409928]
[1737080013007,0.18407512,101800.0,101790.0,0.50302284]
[1737080013709,0.1,101800.0,101790.0,0.59611768]
[1737080014014,0.88531917,101830.0,101810.0,0.049118]
[1737080014214,0.88531917,101830.0,101810.0,0.50781284]
[1737080014514,0.97841401,101830.0,101810.0,0.50781284]
[1737080014713,0.590709,101830.0,101810.0,0.86861284]
[1737080015306,0.049118,101810.0,101800.0,0.03112199]
[1737080015506,0.14221284,101810.0,101790.0,0.50302084]
[1737080015716,0.140523,101800.0,101790.0,0.409926]
[1737080015915,0.140523,101800.0,101790.0,0.50302084]
[1737080016212,0.0914,101800.0,101790.0,0.50302084]
[1737080016412,0.0914,101800.0,101790.0,0.51282502]
[1737080016612,0.0914,101800.0,101790.0,0.50302084]
[1737080020116,0.140523,101800.0,101790.0,0.50302084]
[1737080020706,0.0912,101810.0,101800.0,0.049123]
[1737080020916,0.42000493,101820.0,101810.0,0.049118]
[1737080020917,0.134414,101820.0,101810.0,0.049118]
[1737080021119,0.134414,101820.0,101810.0,0.50301284]
[1737080022709,0.049104,101840.0,101810.0,0.59610768]
[1737080022918,0.049104,101840.0,101830.0,0.45389484]
[1737080023211,0.049104,101840.0,101830.0,0.50300284]
[1737080023530,0.1712,101850.0,101830.0,0.50300284]
[1737080023717,0.220299,101850.0,101840.0,0.09309484]
[1737080025423,0.220299,101850.0,101840.0,0.43589483]
[1737080026518,0.049103,101840.0,101830.0,0.45389484]
[1737080027826,0.049103,101840.0,101830.0,0.3608]
[1737080028217,0.049103,101840.0,101830.0,0.45389484]
[1737080028819,0.049108,101830.0,101820.0,0.10314439]
[1737080029127,0.133008,101830.0,101820.0,0.10314439]
[1737080030427,0.220208,101830.0,101820.0,0.10314439]
[1737080030622,0.220208,101830.0,101810.0,0.50300884]
[1737080031322,0.049113,101820.0,101810.0,0.14220884]
[1737080031526,0.049113,101820.0,101810.0,0.50300884]
[1737080032827,0.049113,101820.0,101810.0,0.51305847]
[1737080038425,0.136309,101830.0,101820.0,0.049113]
[1737080038621,0.136309,101830.0,101820.0,0.58530784]
[1737080039420,0.0872,101830.0,101820.0,0.58530784]
[1737080040435,0.0872,101830.0,101820.0,0.76810268]
[1737080040930,0.049105,101840.0,101830.0,0.049108]
[1737080041131,0.049105,101840.0,101830.0,0.50300284]
[1737080043432,0.049105,101840.0,101830.0,0.50291863]
[1737080044321,0.049105,101840.0,101820.0,0.5328]
[1737080044322,0.14219984,101840.0,101820.0,0.492212]
[1737080044526,0.135608,101830.0,101820.0,0.492212]
[1737080044725,0.135608,101830.0,101820.0,0.049112]
[1737080044924,0.221908,101830.0,101820.0,0.049112]
[1737080045333,0.049113,101820.0,101810.0,0.41996663]
[1737080045633,0.049113,101820.0,101810.0,0.51306147]
[1737080045834,0.049113,101820.0,101810.0,0.3608]
[1737080046823,0.049118,101810.0,101800.0,0.3608]
[1737080047024,0.0907,101810.0,101790.0,0.50449424]
[1737080047224,0.138923,101800.0,101790.0,0.14369424]
[1737080047435,0.23201784,101800.0,101790.0,0.0014734]
[1737080047621,0.31961784,101800.0,101790.0,0.0014734]
[1737080047826,0.68041784,101800.0,101770.0,0.51300485]
[1737080048021,0.04913,101790.0,101770.0,0.51300485]
[1737080048229,0.138925,101800.0,101780.0,0.50302684]
[1737080048427,0.226525,101800.0,101790.0,0.45389484]
[1737080048624,0.0898,101800.0,101790.0,0.50302284]
[1737080048828,0.138923,101800.0,101790.0,0.50302284]
[1737080049928,0.138923,101800.0,101790.0,0.3608]
[1737080050536,0.138923,101800.0,101780.0,0.50302684]
[1737080051135,0.138923,101800.0,101790.0,0.3608]
[1737080053128,0.18289484,101800.0,101780.0,0.50302684]
[1737080053428,0.18289484,101800.0,101780.0,0.14222684]
[1737080053429,0.049128,101790.0,101780.0,0.14222684]
[1737080053636,0.049128,101790.0,101780.0,0.50302684]
[1737080053938,0.049128,101790.0,101780.0,0.409932]
[1737080054337,0.049128,101790.0,101780.0,0.50302684]
[1737080061150,0.0898,101800.0,101790.0,0.049128]
[1737080061445,0.0898,101800.0,101790.0,0.59611768]
[1737080061639,0.0898,101800.0,101790.0,0.50302284]
[1737080063544,0.049128,101790.0,101780.0,0.22622684]
[1737080064043,0.138924,101800.0,101780.0,0.58702684]
[1737080064249,0.138924,101800.0,101790.0,0.45389484]
[1737080064744,0.0898,101800.0,101790.0,0.54698968]
[1737080065039,0.26550449,101830.0,101790.0,0.59611768]
[1737080065243,0.26550449,101830.0,101820.0,0.59610268]
[1737080065244,0.35610449,101830.0,101820.0,0.59610268]
[1737080065644,0.35610449,101830.0,101820.0,0.59340784]
[1737080066142,0.3608,101860.0,101820.0,0.68650268]
[1737080066335,0.0906,101850.0,101840.0,0.409902]
[1737080067745,0.0906,101850.0,101840.0,0.50299684]
[1737080071133,0.0906,101850.0,101840.0,0.409902]
[1737080071446,0.139699,101850.0,101840.0,0.409902]
[1737080071647,0.139699,101850.0,101840.0,0.50299684]
[1737080073552,0.0906,101850.0,101840.0,0.50299684]
[1737080078447,0.05056362,101870.0,101860.0,0.049094]
[1737080078646,0.13766362,101870.0,101860.0,0.409894]
[1737080079449,0.13766362,101870.0,101860.0,0.50298884]
[1737080079862,0.08857362,101870.0,101860.0,0.50298884]
[1737080082553,0.08857362,101870.0,101860.0,0.409894]
[1737080082948,0.08857362,101870.0,101860.0,0.50298884]
[1737080083853,0.73719052,101900.0,101880.0,0.04908]
[1737080084053,0.82679052,101900.0,101890.0,0.14217384]
[1737080084258,0.77771552,101900.0,101890.0,0.14217384]
[1737080084449,0.77771552,101900.0,101890.0,0.049079]
[1737080084646,1.18758952,101900.0,101890.0,0.049079]
[1737080085355,0.238674,101900.0,101890.0,0.39187899]
[1737080086354,0.238674,101900.0,101890.0,0.48497383]
[1737080087769,0.238674,101900.0,101890.0,0.3608]
[1737080088780,0.238674,101900.0,101880.0,0.67757584]
[1737080089165,0.238674,101900.0,101890.0,0.3608]
[1737080090777,0.238674,101900.0,101890.0,0.45389484]
[1737080093183,0.238674,101900.0,101890.0,0.50297384]
[1737080096276,0.238674,101900.0,101890.0,0.45389484]
[1737080100476,0.049079,101890.0,101880.0,0.37052354]
[1737080100690,0.049079,101890.0,101880.0,0.3608]
[1737080100988,0.049079,101890.0,101880.0,0.45389484]
[1737080101783,0.049079,101890.0,101880.0,0.09309484]
[1737080103092,0.049079,101890.0,101880.0,0.50297884]
[1737080103292,0.049079,101890.0,101880.0,0.59607368]
[1737080103487,0.238675,101900.0,101880.0,0.59607368]
[1737080103787,0.049079,101890.0,101880.0,0.50297884]
[1737080106085,0.049079,101890.0,101880.0,0.59607368]
[1737080106887,0.049079,101890.0,101880.0,0.50297884]
[1737080107192,0.049079,101890.0,101880.0,0.59607368]
[1737080108590,0.1896,101900.0,101880.0,0.59607368]
[1737080108895,0.238675,101900.0,101890.0,0.50297384]
[1737080109092,0.238675,101900.0,101890.0,0.59167384]
[1737080110385,0.1896,101900.0,101890.0,0.59167384]
[1737080110583,0.1896,101900.0,101890.0,0.67657384]
[1737080111000,0.238674,101900.0,101890.0,0.67657384]
[1737080111795,0.1896,101900.0,101890.0,0.67657384]
[1737080114091,0.4457,101920.0,101890.0,0.68649934]
[1737080114289,0.222367,101920.0,101910.0,0.54698968]
[1737080114490,0.137467,101920.0,101910.0,0.59605968]
[1737080115189,0.05053468,101930.0,101910.0,0.59605968]
[1737080115499,0.26403058,101950.0,101940.0,0.049055]
[1737080115694,0.26403058,101950.0,101940.0,0.59604468]
[1737080115890,0.31308058,101950.0,101940.0,0.59604468]
[1737080116201,0.73871017,101960.0,101940.0,0.59604468]
[1737080116202,0.18191517,101960.0,101940.0,0.59604468]
[1737080116496,8.618e-05,101990.0,101980.0,0.049036]
[1737080116698,8.618e-05,101990.0,101980.0,0.409836]
[1737080116699,0.23515396,101990.0,101980.0,0.409836]
[1737080117097,0.3772798,101990.0,101980.0,0.3608]
[1737080117398,0.3772798,101990.0,101970.0,0.3608]
[1737080117600,0.23515396,101990.0,101970.0,0.3608]
[1737080117810,0.09309484,101980.0,101970.0,0.3608]
[1737080117990,0.14213084,101980.0,101970.0,0.7216]
[1737080118305,0.049041,101970.0,101960.0,0.76051536]
[1737080118507,0.14213584,101970.0,101960.0,0.76051536]
[1737080118802,0.14213584,101970.0,101960.0,0.3608]
[1737080119007,0.049041,101970.0,101960.0,0.3608]
[1737080119191,0.14213584,101970.0,101960.0,0.3608]
[1737080119697,0.12813584,101970.0,101960.0,0.3608]
[1737080119898,0.035041,101970.0,101960.0,0.3608]
[1737080120102,0.12813584,101970.0,101960.0,0.409846]
[1737080120307,0.09309484,101970.0,101960.0,0.409846]
[1737080120496,0.049037,101980.0,101970.0,0.049041]
[1737080120705,8.618e-05,101990.0,101980.0,0.049036]
[1737080120898,8.618e-05,101990.0,101980.0,0.50293084]
[1737080121206,0.7201,102000.0,101980.0,0.45389484]
[1737080121507,0.7201,102000.0,101990.0,0.50292584]
[1737080122302,0.0723,102020.0,102000.0,0.049022]
[1737080122601,0.121317,102020.0,102010.0,0.45389484]
[1737080122798,0.049017,102020.0,102010.0,0.50291684]
[1737080123006,0.45,102040.0,102010.0,0.86371684]
[1737080123007,0.049013,102030.0,102010.0,0.86371684]
[1737080123193,0.049013,102030.0,102020.0,0.45389484]
[1737080123398,0.049013,102030.0,102020.0,0.3608]
[1737080124308,0.049013,102030.0,102010.0,0.3608]
[1737080124309,0.049017,102020.0,102010.0,0.3608]
[1737080124699,0.049017,102020.0,102010.0,0.49926476]
[1737080125000,0.138209,102040.0,102010.0,0.54828276]
[1737080125201,0.138209,102040.0,102030.0,0.3608]
[1737080125400,0.138209,102040.0,102030.0,0.34279999]
[1737080125603,0.138209,102040.0,102030.0,0.48126475]
[1737080126908,0.049009,102040.0,102030.0,0.48126475]
[1737080127209,0.049012,102030.0,102020.0,0.49926476]
[1737080127711,0.56210743,102050.0,102020.0,0.49926476]
[1737080127899,0.56210743,102050.0,102030.0,0.13846476]
[1737080128103,0.25030943,102050.0,102040.0,0.13846476]
[1737080128301,0.25030943,102050.0,102040.0,0.18747176]
[1737080128302,0.03080743,102050.0,102040.0,0.18747176]
[1737080128517,0.03080743,102050.0,102040.0,0.54827176]
[1737080128702,0.07980943,102050.0,102040.0,0.3608]
[1737080128907,0.07980943,102050.0,102030.0,0.49926476]
[1737080128908,0.049007,102040.0,102030.0,0.49926476]
[1737080129408,0.03080743,102050.0,102030.0,0.49926476]
[1737080129702,0.07980943,102050.0,102040.0,0.54827176]
[1737080129907,0.07980943,102050.0,102040.0,0.3608]
[1737080130414,0.07980943,102050.0,102040.0,0.34279999]
[1737080130707,0.03080743,102050.0,102040.0,0.53027175]
[1737080130913,0.3608,102080.0,102040.0,0.61972951]
[1737080131216,0.0839,102080.0,102070.0,0.13846476]
[1737080131399,0.132889,102080.0,102070.0,0.13846476]
[1737080131605,0.0839,102080.0,102070.0,0.18745776]
[1737080131797,0.132888,102080.0,102070.0,0.13846476]
[1737080131998,0.0839,102080.0,102070.0,0.18745776]
[1737080132401,0.0839,102080.0,102070.0,0.54825776]
[1737080132711,0.21647018,102090.0,102070.0,0.54825776]
[1737080132712,0.04907018,102090.0,102070.0,0.54825776]
[1737080133011,0.04907018,102090.0,102080.0,0.13846476]
[1737080135703,0.048988,102080.0,102070.0,0.409792]
[1737080135911,0.04907018,102090.0,102070.0,0.54825676]
[1737080136717,0.04907018,102090.0,102070.0,0.409792]
[1737080137019,0.048988,102080.0,102070.0,0.49926476]
[1737080138617,0.048988,102080.0,102070.0,0.3608]
[1737080138820,0.048998,102060.0,102050.0,0.49926476]
[1737080139020,0.409788,102080.0,102060.0,0.048996]
[1737080139021,0.048991,102080.0,102060.0,0.048996]
[1737080139219,0.048991,102080.0,102060.0,0.54826076]
[1737080139924,0.048991,102080.0,102070.0,0.3608]
[1737080140123,0.048991,102080.0,102070.0,0.49926476]
[1737080140919,0.048991,102080.0,102070.0,0.3608]
[1737080141223,0.048991,102080.0,102070.0,0.54825776]
[1737080142027,8.618e-05,102090.0,102070.0,0.54825776]
[1737080142028,0.048987,102090.0,102070.0,0.54825776]
[1737080142213,0.048987,102090.0,102080.0,0.3608]
[1737080143127,0.048988,102080.0,102060.0,0.54826176]
[1737080143317,0.048988,102080.0,102070.0,0.3608]
[1737080144022,0.048993,102070.0,102060.0,0.5020424]
[1737080144222,0.048993,102070.0,102060.0,0.3608]
[1737080144424,0.048993,102070.0,102060.0,0.5020434]
[1737080145623,0.0922454,102090.0,102060.0,0.5020434]
[1737080145925,0.048993,102070.0,102060.0,0.5020434]
[1737080146130,0.048993,102070.0,102060.0,0.3608]
[1737080146528,0.048998,102060.0,102050.0,0.4530454]
[1737080146819,0.049002,102050.0,102040.0,0.18140298]
[1737080147025,0.049002,102050.0,102040.0,0.67363682]
[1737080147225,0.048998,102060.0,102040.0,0.62462982]
[1737080147426,0.048998,102060.0,102050.0,0.5020474]
[1737080147637,0.4507,102080.0,102050.0,0.5020474]
[1737080147931,0.499688,102080.0,102070.0,0.0922454]
[1737080148126,0.499688,102080.0,102060.0,0.4530454]
[1737080148127,0.048993,102070.0,102060.0,0.4530454]
[1737080149117,0.048993,102070.0,102050.0,0.3608]
[1737080149321,0.049002,102060.0,102050.0,0.0922454]
[1737080149521,0.049002,102060.0,102050.0,0.5020474]
[1737080149725,0.138889,102080.0,102070.0,0.048993]
[1737080149924,0.138889,102080.0,102070.0,0.0922454]
[1737080150733,0.138889,102080.0,102060.0,0.5020424]
[1737080151826,0.138889,102080.0,102070.0,0.0922454]
[1737080152535,0.048993,102070.0,102060.0,0.5020424]
[1737080154940,0.13889,102080.0,102070.0,0.048993]
[1737080155131,0.13889,102080.0,102070.0,0.1412384]
[1737080155822,0.0899,102080.0,102070.0,0.5020384]
[1737080156028,0.0899,102080.0,102070.0,1.46054596]
[1737080157140,0.0899,102080.0,102070.0,1.23241502]
[1737080159232,0.0899,102080.0,102070.0,1.57461143]
[1737080160136,0.21375718,102100.0,102070.0,1.57461143]
[1737080160335,0.29815718,102100.0,102090.0,0.1412284]
[1737080160538,0.29815718,102100.0,102090.0,0.048983]
[1737080160539,0.65895718,102100.0,102090.0,0.048983]
[1737080160934,0.70222258,102100.0,102070.0,1.24045475]
[1737080161135,0.409788,102080.0,102070.0,0.78740935]
[1737080161541,0.493088,102080.0,102070.0,0.78740935]
[1737080161744,0.493088,102080.0,102070.0,0.34219641]
[1737080161941,0.493088,102080.0,102070.0,0.43444181]
[1737080162238,0.493088,102080.0,102070.0,0.20959641]
[1737080162637,0.8853334,102080.0,102040.0,0.49294429]
[1737080162839,0.409801,102060.0,102050.0,0.0922454]
[1737080163740,0.409801,102060.0,102050.0,0.3190822]
[1737080164844,0.409801,102060.0,102050.0,0.26229933]
[1737080165245,0.049001,102060.0,102050.0,0.31130133]
[1737080165540,0.049001,102060.0,102050.0,0.67210133]
[1737080165730,0.049001,102060.0,102050.0,0.53085393]
[1737080166035,0.049001,102060.0,102050.0,0.62309933]
[1737080166235,0.049001,102060.0,102050.0,0.67210133]
[1737080166436,0.221494,102070.0,102050.0,0.67210133]
[1737080166638,0.221494,102070.0,102060.0,0.0922454]
[1737080166849,0.582294,102070.0,102050.0,0.76010133]
[1737080167343,0.048998,102060.0,102050.0,0.17005393]
[1737080167639,0.048998,102060.0,102050.0,0.53085393]
[1737080167837,0.048998,102060.0,102050.0,0.57985593]
[1737080168039,0.048998,102060.0,102050.0,0.21905593]
[1737080168550,0.048998,102060.0,102050.0,0.57985593]
[1737080168842,0.582294,102070.0,102050.0,0.21905593]
[1737080169043,0.221494,102070.0,102060.0,0.0922454]
[1737080169547,0.0881,102070.0,102060.0,0.5020434]
[1737080169743,0.132289,102080.0,102060.0,0.5942888]
[1737080170048,0.132289,102080.0,102070.0,0.0922454]
[1737080170848,0.132289,102080.0,102070.0,0.5020384]
[1737080171036,0.132289,102080.0,102070.0,0.5895384]
[1737080171233,0.0833,102080.0,102070.0,0.5895384]
[1737080171541,0.215584,102090.0,102070.0,0.5895384]
[1737080171744,0.215584,102090.0,102080.0,0.1412334]
[1737080173051,0.048988,102080.0,102070.0,0.136492]
[1737080173351,0.048988,102080.0,102070.0,0.0922454]
[1737080173654,0.048988,102080.0,102070.0,0.1412384]
[1737080173848,0.048988,102080.0,102070.0,0.5020384]
[1737080174441,0.048988,102080.0,102070.0,0.1412384]
[1737080174641,0.048993,102070.0,102060.0,0.46288789]
[1737080174852,0.133793,102070.0,102060.0,0.46288789]
[1737080175051,0.133793,102070.0,102060.0,0.51188589]
[1737080175052,0.0848,102070.0,102060.0,0.51188589]
[1737080175248,0.048989,102080.0,102060.0,0.60413129]
[1737080175442,0.409789,102080.0,102070.0,0.0922454]
[1737080175649,0.048989,102080.0,102070.0,0.0922454]
[1737080176050,0.048989,102080.0,102070.0,0.1412384]
[1737080176246,0.048989,102080.0,102070.0,0.5020384]
[1737080176546,0.300384,102090.0,102070.0,0.5891384]
[1737080176750,0.300384,102090.0,102080.0,0.0897454]
[1737080177054,0.300384,102090.0,102070.0,0.5891384]
[1737080178851,0.300384,102090.0,102070.0,0.2283384]
[1737080179052,0.300384,102090.0,102070.0,0.136093]
[1737080179257,0.300384,102090.0,102060.0,0.46288789]
[1737080179258,0.048988,102080.0,102060.0,0.46288789]
[1737080179555,0.048988,102080.0,102060.0,0.23708189]
[1737080179956,0.048988,102080.0,102070.0,0.0922454]
[1737080180159,0.048988,102080.0,102070.0,0.1412384]
[1737080181557,0.048988,102080.0,102070.0,0.5020384]
[1737080181757,0.048988,102080.0,102070.0,0.048993]
[1737080181954,0.048988,102080.0,102070.0,0.409793]
[1737080182160,0.048988,102080.0,102070.0,0.5020384]
[1737080183558,0.1698,102090.0,102080.0,0.048988]
[1737080183859,0.1698,102090.0,102080.0,0.409788]
[1737080184158,0.579583,102090.0,102070.0,0.5860364]
[1737080184360,0.218783,102090.0,102080.0,0.0922454]
[1737080184563,0.218783,102090.0,102070.0,0.5860364]
[1737080184859,0.218783,102090.0,102080.0,0.0922454]
[1737080185058,0.1698,102090.0,102080.0,0.5020334]
[1737080185362,0.33617851,102100.0,102080.0,0.5020334]
[1737080185552,0.33617851,102100.0,102090.0,0.2253284]
[1737080185859,0.33617851,102100.0,102090.0,0.133083]
[1737080186251,0.13055618,102100.0,102090.0,0.133083]
[1737080186453,0.08157718,102100.0,102090.0,0.5861284]
[1737080187950,0.53981551,102120.0,102090.0,0.6783738]
[1737080187951,0.36227011,102120.0,102090.0,0.6783738]
[1737080188149,0.56642233,102130.0,102110.0,0.2334648]
[1737080188355,0.56642233,102130.0,102120.0,0.2253144]
[1737080188555,0.60590195,102130.0,102120.0,0.3175598]
[1737080189151,0.60590195,102130.0,102120.0,0.0841]
[1737080189462,0.36791407,102170.0,102140.0,0.048957]
[1737080189663,0.36791107,102170.0,102160.0,0.4530454]
[1737080189855,0.36791107,102170.0,102160.0,0.3608]
[1737080190056,0.25393165,102170.0,102160.0,0.3608]
[1737080190252,0.34617705,102170.0,102160.0,0.3608]
[1737080190453,0.34617705,102170.0,102160.0,0.34279999]
[1737080190656,0.04895,102160.0,102080.0,0.17005393]
[1737080190961,0.1412204,102110.0,102090.0,0.3608]
[1737080191153,0.048983,102090.0,102080.0,0.53085393]
[1737080191353,0.1412284,102090.0,102080.0,0.3608]
[1737080191558,0.048988,102080.0,102070.0,0.70197756]
[1737080191858,0.1412334,102080.0,102070.0,0.70197756]
[1737080192061,0.1412334,102080.0,102060.0,0.3608]
[1737080192062,0.049002,102050.0,102040.0,0.57674469]
[1737080192252,0.049002,102050.0,102010.0,1.01693927]
[1737080192253,0.5020474,102050.0,102010.0,1.01693927]
[1737080192457,0.5020474,102050.0,102000.0,0.86002915]
[1737080192458,0.1412624,102020.0,102000.0,0.86002915]
[1737080192657,0.049017,102020.0,102010.0,0.3608]
[1737080193253,0.1412624,102020.0,102010.0,0.3608]
[1737080193459,0.1412624,102020.0,102000.0,0.86002915]
[1737080193460,0.21994611,102020.0,102000.0,0.86002915]
[1737080193658,0.049022,102010.0,102000.0,0.86002915]
[1737080193860,0.049022,102010.0,102000.0,1.22082915]
[1737080194167,0.049022,102010.0,102000.0,0.8216]
[1737080194855,0.18756811,102010.0,102000.0,0.8216]
[1737080195064,0.049022,102010.0,102000.0,0.8216]
[1737080196453,0.211017,102020.0,102000.0,0.96014611]
[1737080196654,0.130417,102020.0,102010.0,0.49934611]
[1737080196855,0.0814,102020.0,102010.0,0.49934611]
[1737080197061,0.1617,102040.0,102010.0,0.49934611]
[1737080197267,0.20460607,102050.0,102030.0,0.86014611]
[1737080197463,0.20460607,102050.0,102040.0,0.49934611]
[1737080197652,0.08257111,102070.0,102040.0,0.54835311]
[1737080197857,0.08257111,102070.0,102040.0,0.3608]
[1737080197858,0.048998,102060.0,102040.0,0.3608]
[1737080198150,0.049002,102050.0,102040.0,0.3608]
[1737080198352,0.049002,102050.0,102040.0,0.49934611]
[1737080199263,0.049002,102050.0,102030.0,0.3608]
[1737080199264,0.049007,102040.0,102030.0,0.3608]
[1737080199469,0.18755311,102040.0,102030.0,0.3608]
[1737080199766,0.049007,102040.0,102030.0,0.49934611]
[1737080199957,0.409802,102060.0,102030.0,0.49934611]
[1737080200159,0.409802,102060.0,102040.0,0.3608]
[1737080200160,0.049002,102050.0,102040.0,0.3608]
[1737080200557,0.18754811,102050.0,102040.0,0.3608]
[1737080201167,0.049012,102030.0,102020.0,0.3608]
[1737080201366,0.049012,102030.0,102020.0,0.49934611]
[1737080201764,0.049017,102020.0,102010.0,0.49934611]
[1737080201959,0.049017,102020.0,102010.0,0.3608]
[1737080202261,0.049022,102010.0,102000.0,0.4608]
[1737080202566,0.049018,102020.0,102000.0,0.59934611]
[1737080202968,0.3608,102040.0,102010.0,0.49934611]
[1737080203170,0.049009,102040.0,102020.0,0.49934611]
[1737080204267,0.049012,102030.0,102020.0,0.3608]
[1737080204464,0.049012,102030.0,102010.0,0.49934611]
[1737080204872,0.049012,102030.0,102010.0,0.13854611]
[1737080205167,0.3608,102040.0,102010.0,0.13854611]
[1737080205368,0.049022,102010.0,102000.0,0.59934611]
[1737080205566,0.049022,102010.0,102000.0,0.4608]
[1737080206273,0.049022,102010.0,102000.0,0.59934611]
[1737080207963,0.049022,102010.0,102000.0,0.4608]
[1737080208570,0.049022,102010.0,102000.0,0.59934611]
[1737080210470,0.409822,102010.0,102000.0,0.1]
[1737080212173,0.049022,102010.0,102000.0,0.1]
[1737080212376,0.049022,102010.0,102000.0,0.23854611]
[1737080212774,0.409822,102010.0,102000.0,0.1]
[1737080213180,0.54836811,102010.0,102000.0,0.1]
[1737080213372,0.049036,101980.0,101960.0,0.3608]
[1737080213573,0.049041,101970.0,101960.0,0.3608]
[1737080213778,0.049041,101970.0,101960.0,0.49934611]
[1737080214672,0.049041,101970.0,101960.0,0.3608]
[1737080215379,0.049041,101970.0,101960.0,0.49934611]
[1737080216773,0.049041,101970.0,101960.0,0.3608]
[1737080216977,0.049046,101960.0,101950.0,0.3608]
[1737080217377,0.049046,101960.0,101950.0,0.49934611]
[1737080218575,0.3608,101960.0,101930.0,0.49934611]
[1737080218777,0.049048,101960.0,101950.0,0.49934611]
[1737080218975,0.049048,101960.0,101950.0,0.13854611]
[1737080219371,0.3608,101970.0,101940.0,0.54840011]
[1737080219577,0.04905,101950.0,101940.0,0.49934611]
[1737080219978,0.04905,101950.0,101940.0,0.3608]
[1737080220384,0.3608,101960.0,101930.0,0.3608]
[1737080220385,0.049055,101940.0,101930.0,0.3608]
[1737080220784,0.049055,101940.0,101930.0,0.49934611]
[1737080220986,0.3608,101960.0,101930.0,0.49934611]
[1737080221284,0.04906,101930.0,101920.0,0.3608]
[1737080221484,0.04906,101930.0,101920.0,0.49934611]
[1737080221681,0.128451,101950.0,101930.0,0.049058]
[1737080221888,0.128451,101950.0,101930.0,0.54840411]
[1737080222078,0.049055,101940.0,101930.0,0.54840411]
[1737080222395,0.049055,101940.0,101930.0,0.3608]
[1737080222574,0.049055,101940.0,101920.0,0.3608]
[1737080222575,0.54840111,101940.0,101920.0,0.3608]
[1737080222886,0.54840111,101940.0,101910.0,0.53114826]
[1737080223076,0.049065,101920.0,101910.0,0.53114826]
[1737080223283,0.049065,101920.0,101910.0,0.71876437]
[1737080223677,0.049065,101920.0,101910.0,0.54988761]
[1737080223882,0.049061,101930.0,101910.0,0.54988761]
[1737080224188,0.57874611,101950.0,101920.0,0.49934611]
[1737080224189,0.4402,101950.0,101920.0,0.49934611]
[1737080224384,0.128452,101950.0,101940.0,0.3608]
[1737080224585,0.049055,101940.0,101920.0,0.210764]
[1737080224779,0.049065,101920.0,101910.0,0.3622715]
[1737080224979,0.049065,101920.0,101910.0,0.50081761]
[1737080225179,0.049061,101930.0,101910.0,0.54988561]
[1737080225379,0.049061,101930.0,101920.0,0.49934611]
[1737080226192,0.049061,101930.0,101920.0,0.3608]
[1737080228584,0.049056,101940.0,101920.0,0.54841111]
[1737080228882,0.4402,101950.0,101930.0,0.49934611]
[1737080229084,0.049046,101960.0,101940.0,0.54839911]
[1737080229592,0.049046,101960.0,101950.0,0.13854611]
[1737080229788,0.049046,101960.0,101940.0,0.54839911]
[1737080229985,0.049046,101960.0,101950.0,0.3608]
[1737080231389,0.049046,101960.0,101950.0,0.40985]
[1737080231884,0.049046,101960.0,101950.0,0.3608]
[1737080232080,0.049046,101960.0,101940.0,0.409855]
[1737080232486,0.049046,101960.0,101950.0,0.3608]
[1737080232685,0.49934611,101970.0,101940.0,0.3608]
[1737080232876,0.49934611,101960.0,101930.0,0.74696322]
[1737080233079,0.049055,101940.0,101930.0,0.68557676]
[1737080233580,0.049055,101940.0,101930.0,0.66822287]
[1737080233782,0.049055,101940.0,101930.0,0.71728287]
[1737080233983,0.3608,101970.0,101930.0,0.66822287]
[1737080234189,0.049041,101970.0,101960.0,0.3608]
[1737080238095,0.049041,101970.0,101960.0,0.49934611]
[1737080238286,0.049041,101970.0,101960.0,0.3608]
[1737080238791,0.049041,101970.0,101960.0,0.409846]
[1737080241094,0.049041,101970.0,101960.0,0.54839211]
[1737080241983,0.049037,101980.0,101970.0,0.049041]
[1737080242191,0.049037,101980.0,101970.0,0.54838711]
[1737080242389,0.049037,101980.0,101970.0,0.409841]
[1737080242591,0.049037,101980.0,101960.0,0.54839111]
[1737080242790,0.049041,101970.0,101960.0,0.52967676]
[1737080244097,0.18758711,101970.0,101960.0,0.3608]
[1737080244295,0.18758711,101970.0,101950.0,0.39404577]
[1737080244296,0.049046,101960.0,101950.0,0.39404577]
[1737080244494,0.049055,101940.0,101930.0,0.33750022]
[1737080244696,0.049055,101940.0,101930.0,0.28860974]